[Event "GER-ch Youth U12M 2018"]
[Site "Willingen"]
[Date "2018.05.24"]
[Round "8"]
[White "Foerster-Yialamas, Lucas"]
[Black "Bui, Bao Anh Le"]
[Result "1-0"]
[ECO "B90"]
[WhiteElo "1924"]
[BlackElo "1974"]
[Annotator "NA RC"]
[PlyCount "79"]
[EventDate "2018.05.19"]
[EventType "swiss"]
[EventCountry "GER"]
[SourceTitle "playchess.com"]
[Source "ChessBase"]
[SourceQuality "1"]
[TimeControl "40/4500+30:900+30"]

1. e4 {[%emt 0:00:00]} c5 2. Nf3 d6 3. d4 cxd4 {[%emt 0:00:36]} 4. Nxd4 {[%emt 0:00:00]} Nf6 {[%emt 0:00:07]} 5. Nc3 {[%emt 0:00:00]} a6 {[%emt 0:00:02]} 6. Be3 {[%emt 0:00:00]} e5 {[%emt 0:00:05]} 7. Nb3 {[%emt 0:00:00]} Be6 {[%emt 0:00:03]} 8. f3 {[%emt 0:00:00]} h5 {[%emt 0:00:03]} 9. Qd2 {[%emt 0:00:00]} Nbd7 {[%emt 0:00:09]} 10. O-O-O {[%emt 0:00:22]} b5 {[%emt 0:00:20] B90: Sicilian Najdorf: Unusual White 6th moves, 6 Be3 Ng4 and 6 Be3 e5} 11. Nd5 {[%emt 0:00:44]} (11. Kb1 Be7 12. h4 O-O 13. Bg5 Rc8 14. a3 Qc7 15. g4 hxg4 16. fxg4 Nb6 17. Bxf6 Bxf6 18. g5 {½-½ (70) Yu,Y (2751)-Vachier Lagrave,M (2789) Riadh 2017}) 11... Bxd5 {[%emt 0:01:10] LiveBook: 7 Partien} 12. exd5 {[%emt 0:00:02]} Rc8 {[%emt 0:02:40]} 13. Be2 $146 {[%emt 0:11:03]} ({Predecessor:} 13. g3 Nb6 14. Bh3 Nc4 15. Qe2 Rc7 16. Kb1 g6 17. Bg5 Be7 18. Nd2 {1-0 (54) Delizia,C (2353)-Caradonna,G (2199) ICCF email 2013}) 13... Qc7 {[%emt 0:04:01]} 14. c3 {[%emt 0:01:50]} Be7 {[%emt 0:04:06]} 15. Kb1 {[%emt 0:10:19]} Nb6 {[%emt 0:02:39]} 16. Bxb6 {[%emt 0:01:01]} Qxb6 {[%emt 0:02:48]} 17. h3 {[%emt 0:03:25]} h4 {[%emt 0:03:24]} 18. Qg5 {[%emt 0:02:41]} g6 {[%emt 0:05:36]} 19. Qd2 {[%emt 0:10:33]} Nh5 {[%emt 0:06:14]} 20. Rhe1 {[%emt 0:08:19]} Nf4 {[%emt 0:07:35]} 21. Bf1 {[%emt 0:01:35]} Kf8 {[%emt 0:11:26]} 22. Re4 {[%emt 0:09:24]} Bg5 {[%emt 0:08:42]} 23. Qc2 {[%emt 0:02:42]} a5 {[%emt 0:05:19]} 24. Nc1 {[%emt 0:02:48]} (24. a4 $142) 24... Rc5 {[%emt 0:13:12]} ({Lieber} 24... f5 $17 25. Ree1 Kg7) 25. Nd3 {[%emt 0:04:11]} Rxd5 {[%emt 0:02:44]} 26. Nxf4 {[%emt 0:00:29]} Rxd1+ {[%emt 0:00:04]} 27. Qxd1 {[%emt 0:00:01]} Bxf4 {[%emt 0:02:08]} 28. Qb3 {[%emt 0:02:16]} Ke7 {[%emt 0:03:21]} 29. Qxb5 {[%emt 0:00:39]} Qxb5 {[%emt 0:00:11]} 30. Bxb5 {[%emt 0:00:00]} Rb8 {[%emt 0:00:36]} 31. Bc6 {[%emt 0:02:02]} Kd8 $16 {[%emt 0:01:01]} (31... Rb6 $11 32. Bd5 Rb5) 32. Ra4 {[%emt 0:00:55]} Kc7 {[%emt 0:00:05]} 33. Bd5 {[%emt 0:00:05]} Kb6 {[%emt 0:00:58]} 34. Bxf7 {[%emt 0:00:39]} g5 {[%emt 0:00:05]} 35. Kc2 {[%emt 0:00:40]} Kb5 {[%emt 0:00:50]} 36. Re4 {[%emt 0:00:43]} Kc6 {[%emt 0:00:14]} 37. Rc4+ {[%emt 0:00:37]} Kb6 {[%emt 0:00:40]} 38. Bd5 {[%emt 0:00:16]} Ka6 {[%emt 0:00:39]} 39. a4 {[%emt 0:00:26]} Be3 {[%emt 0:00:33]} 40. Rc6+ {[%emt 0:00:19]} 1-0

[Event "GER-ch Youth U12M 2018"]
[Site "Willingen"]
[Date "2018.05.24"]
[Round "8"]
[White "Laux, Dominik"]
[Black "Hecht, Jonas"]
[Result "1/2-1/2"]
[ECO "A45"]
[WhiteElo "1889"]
[BlackElo "1678"]
[Annotator "NA RC"]
[PlyCount "87"]
[EventDate "2018.05.19"]
[EventType "swiss"]
[EventCountry "GER"]
[SourceTitle "playchess.com"]
[Source "ChessBase"]
[SourceQuality "1"]
[TimeControl "40/4500+30:900+30"]

1. d4 {[%emt 0:00:00]} Nf6 {[%emt 0:00:18]} 2. Bf4 {[%emt 0:00:02]} e6 {[%emt 0:00:40]} 3. e3 {[%emt 0:00:10]} c5 {[%emt 0:01:03]} 4. c3 {[%emt 0:00:23] A45: Damenbauernspiele (Trompowski-Angriff)} b6 {[%emt 0:00:45]} (4... Nc6 5. Nd2 d5 6. Ngf3 Bd6 7. Bg3 O-O 8. Bb5 Be7 9. Bd3 b6 10. O-O Bb7 11. h3 Bd6 12. Bh4 Be7 13. Qb1 h6 14. a3 Nh5 15. Bxe7 Qxe7 {½-½ (64) Carlsen,M (2837)-Wang,H (2709) Riadh 2017}) 5. Nf3 {[%emt 0:00:23]} Ba6 {[%emt 0:01:05]} 6. Bxa6 {[%emt 0:01:16]} Nxa6 {[%emt 0:00:49]} 7. Nbd2 {[%emt 0:00:24]} Be7 {[%emt 0:04:29]} 8. h3 {[%emt 0:02:36]} O-O {[%emt 0:00:56]} 9. O-O {[%emt 0:00:26]} Qc8 {[%emt 0:02:20]} 10. Rc1 $146 {[%emt 0:02:42]} ({Vorgänger:} 10. a4 Qb7 11. Qe2 Rfc8 12. Bg5 h6 13. Bh4 {½-½ (55) Kamsky,G (2670)-Dominguez Perez,L (2732) Sochi 2016}) 10... Rd8 {[%emt 0:02:44]} 11. Qe2 {[%emt 0:02:57]} Qb7 {[%emt 0:02:47]} 12. Rfe1 {[%emt 0:06:09]} Rac8 {[%emt 0:06:25]} 13. a3 {[%emt 0:08:29]} Nc7 {[%emt 0:10:05]} 14. e4 {[%emt 0:04:41]} d6 {[%emt 0:05:38]} 15. Nh2 {[%emt 0:11:16]} Qa6 {[%emt 0:02:29]} 16. Qxa6 {[%emt 0:01:24]} Nxa6 {[%emt 0:00:05]} 17. Nhf1 {[%emt 0:00:59]} Nb8 {[%emt 0:06:07]} 18. f3 {[%emt 0:04:42]} Nc6 {[%emt 0:01:00]} 19. Nb3 {[%emt 0:01:45]} Rd7 {[%emt 0:09:52]} 20. Red1 {[%emt 0:03:53]} d5 {[%emt 0:09:13]} 21. e5 {[%emt 0:06:40]} Nh5 {[%emt 0:00:31]} 22. Be3 {[%emt 0:02:14]} c4 {[%emt 0:00:56]} 23. Nbd2 {[%emt 0:01:48]} g6 {[%emt 0:00:46]} 24. g4 {[%emt 0:02:20]} Ng7 {[%emt 0:00:11]} 25. Ng3 {[%emt 0:00:37]} a5 {[%emt 0:02:23]} 26. f4 {[%emt 0:04:23]} b5 {[%emt 0:01:19]} 27. Kg2 {[%emt 0:03:36]} Ra7 {[%emt 0:01:59]} 28. f5 {[%emt 0:02:29]} Bf8 {[%emt 0:04:22]} 29. Rf1 {[%emt 0:01:59]} Raa8 {[%emt 0:00:50]} 30. Rf3 {[%emt 0:01:42]} b4 {[%emt 0:00:52]} 31. fxg6 {[%emt 0:03:03]} fxg6 {[%emt 0:01:03]} 32. a4 {[%emt 0:00:59]} Be7 {[%emt 0:00:30]} 33. Kf2 {[%emt 0:00:57]} Rf8 {[%emt 0:00:05]} 34. Ke2 {[%emt 0:00:22]} bxc3 {[%emt 0:01:33]} 35. Rxf8+ {[%emt 0:00:53]} Rxf8 {[%emt 0:00:20]} 36. Rxc3 {[%emt 0:00:25]} Rb8 {[%emt 0:00:46]} 37. b3 {[%emt 0:00:51]} Bb4 {[%emt 0:00:09]} 38. Rc2 {[%emt 0:01:08]} Bxd2 {[%emt 0:00:04]} 39. Kxd2 {[%emt 0:00:49]} Rxb3 {[%emt 0:00:19]} 40. Rc3 {[%emt 0:00:22]} Rb4 {[%emt 0:16:48]} 41. Ra3 {[%emt 0:15:30] [#]} Rb2+ $1 {[%emt 0:00:55]} 42. Ke1 {[%emt 0:02:18]} Nb4 {[%emt 0:02:45]} 43. Kd1 {[%emt 0:00:00]} Na2 $11 {[%emt 0:00:00]} ({Black should try} 43... Rh2 $19 44. Bd2 Rxh3) 44. Bd2 {[%emt 0:00:00]} 1/2-1/2

[Event "GER-ch Youth U12M 2018"]
[Site "Willingen"]
[Date "2018.05.24"]
[Round "8"]
[White "Tham, Nam"]
[Black "Metzdorf, Matteo"]
[Result "1-0"]
[ECO "C11"]
[WhiteElo "1866"]
[BlackElo "1832"]
[Annotator "NA RC"]
[PlyCount "57"]
[EventDate "2018.05.19"]
[EventType "swiss"]
[EventCountry "GER"]
[SourceTitle "playchess.com"]
[Source "ChessBase"]
[SourceQuality "1"]
[TimeControl "40/4500+30:900+30"]

1. e4 {[%emt 0:00:00]} e6 {[%emt 0:00:07]} 2. d4 {[%emt 0:00:00]} d5 {[%emt 0:00:09]} 3. Nc3 {[%emt 0:00:00]} Nf6 {[%emt 0:00:08]} 4. e5 {[%emt 0:00:00]} Nfd7 {[%emt 0:00:06]} 5. f4 {[%emt 0:00:00]} c5 {[%emt 0:00:07]} 6. Nf3 {[%emt 0:00:00]} Nc6 {[%emt 0:00:03]} 7. Be3 {[%emt 0:00:03]} a6 {[%emt 0:00:05]} 8. Qd2 {[%emt 0:00:04]} b5 {[%emt 0:00:04]} 9. dxc5 {[%emt 0:00:04]} Bxc5 {[%emt 0:00:09]} 10. Bxc5 {[%emt 0:00:04]} Nxc5 {[%emt 0:00:11]} 11. Qf2 {[%emt 0:00:06]} Qb6 {[%emt 0:01:08]} 12. Bd3 {[%emt 0:00:09]} b4 {[%emt 0:01:15]} 13. Ne2 {[%emt 0:00:09] LiveBook: 185 Games} a5 {[%emt 0:02:55]} 14. O-O {[%emt 0:02:49] C11: French: Classical System: 4 e5 and 4 Bg5 dxe4} Rb8 {[%emt 0:10:02]} (14... Ba6 15. f5 exf5 16. Nf4 O-O 17. Bxa6 Rxa6 18. Nxd5 Qa7 19. Kh1 Ne4 20. Qh4 Re8 21. Ng5 Nxg5 22. Qxg5 Nxe5 23. Rxf5 {½-½ (58) Bartel,M (2641)-Potkin,V (2597) Tallinn 2016}) 15. Kh1 {[%emt 0:05:01]} b3 {[%emt 0:11:06]} 16. Ned4 $146 {[%emt 0:05:05]} ({Predecessor:} 16. a3 bxc2 17. Bxc2 Ba6 18. Ng5 Nb3 19. Qf3 Bxe2 20. Qxe2 Ncd4 21. Qh5 g6 {0-1 (40) Ong,K (2371)-Lindberg,B (2359) Gothenburg 2005}) 16... Nxd3 {[%emt 0:15:46]} 17. cxd3 {[%emt 0:00:21]} Nb4 {[%emt 0:00:40]} 18. axb3 {[%emt 0:11:47]} Nxd3 {[%emt 0:06:49]} 19. Qe3 {[%emt 0:01:37]} Ba6 {[%emt 0:07:04]} 20. Rfd1 {[%emt 0:00:58]} Nb4 21. Rac1 {[%emt 0:10:36]} O-O {[%emt 0:14:42]} 22. Rc3 {[%emt 0:06:48]} h6 {[%emt 0:04:04]} (22... Rfc8 $14) 23. f5 {[%emt 0:08:27]} Rfc8 {[%emt 0:01:36]} 24. f6 {[%emt 0:01:33]} Rc7 $2 {[%emt 0:03:18]} (24... Rxc3 $16 25. bxc3 Nc2) 25. fxg7 {[%emt 0:00:07]} Kxg7 {[%emt 0:00:12] [#]} 26. Qf4 {[%emt 0:01:26]} (26. Nxe6+ $142 $1 {[%mdl 512]} fxe6 (26... Qxe6 27. Rxc7) 27. Qxb6 Rxb6 28. Rxc7+ Kg6 29. Ra1) 26... Rg8 $18 {[%emt 0:02:55]} (26... Rxc3 27. bxc3 Nd3 28. Qf6+ (28. Qh4 Rg8 $16) 28... Kg8) 27. Qf6+ {[%emt 0:01:16]} Kh7 {[%emt 0:00:31]} 28. Nf5 {[%emt 0:00:49]} Rg6 {[%emt 0:01:54] [#]} 29. Ng5+ $1 {[%emt 0:00:17]} 1-0

[Event "GER-ch Youth U12M 2018"]
[Site "Willingen"]
[Date "2018.05.24"]
[Round "8"]
[White "Eilenberg, Jonas"]
[Black "Farokhi, Keyvan"]
[Result "1-0"]
[ECO "D02"]
[WhiteElo "1852"]
[BlackElo "1844"]
[Annotator "NA"]
[PlyCount "99"]
[EventDate "2018.05.19"]
[EventType "swiss"]
[EventCountry "GER"]
[SourceTitle "playchess.com"]
[Source "ChessBase"]
[SourceQuality "1"]
[TimeControl "40/4500+30:900+30"]

1. d4 {[%emt 0:00:00]} d5 {[%emt 0:00:19]} 2. Nf3 {[%emt 0:00:00]} Nf6 {[%emt 0:01:29]} 3. Nbd2 {[%emt 0:00:38]} e6 {[%emt 0:02:33]} 4. c4 {[%emt 0:00:37]} Be7 {[%emt 0:02:34]} 5. e3 {[%emt 0:00:18]} O-O {[%emt 0:00:16]} 6. Bd3 {[%emt 0:00:06]} Nbd7 {[%emt 0:02:10]} 7. O-O {[%emt 0:00:11]} b6 {[%emt 0:00:32]} 8. b3 {[%emt 0:01:00]} Bb7 {[%emt 0:01:00]} 9. Bb2 {[%emt 0:00:28]} Ne4 {[%emt 0:03:16] D05: Colle System with ...e6} (9... c5 10. Rc1 Rc8 11. Qe2 cxd4 12. Nxd4 dxc4 13. Nxc4 Rc5 14. Rfd1 Qa8 15. f3 Re8 16. Ba3 Rxc4 17. Rxc4 Bxa3 18. Nb5 {1-0 (62) Nakamura,H (2785)-Karjakin,S (2781) Paris 2017}) 10. Qc2 {[%emt 0:01:16]} Ndf6 {[%emt 0:00:39]} 11. Ne5 {[%emt 0:00:54]} Nxd2 {[%emt 0:02:16]} 12. Qxd2 {[%emt 0:00:08]} Ne4 {[%emt 0:01:53]} 13. Qc2 {[%emt 0:01:23]} f6 {[%emt 0:07:55]} (13... Nf6 $14) 14. Nf3 {[%emt 0:00:38]} (14. cxd5 $16 Qxd5 15. f3) 14... f5 $146 {[%emt 0:08:07]} ({Predecessor:} 14... Rc8 15. Rfd1 Qe8 16. cxd5 exd5 17. Rac1 Bd6 18. Qe2 {0-1 (50) Wunsch,J (2105)-Krtous,Z (1830) Czechia 2010}) 15. Rac1 {[%emt 0:03:16]} c5 {[%emt 0:01:16]} 16. Rfd1 {[%emt 0:02:27]} Qe8 {[%emt 0:04:29]} 17. Qe2 {[%emt 0:08:50]} g5 {[%emt 0:09:24]} 18. Ne5 {[%emt 0:01:02]} g4 {[%emt 0:05:06]} 19. Bxe4 {[%emt 0:02:39]} dxe4 {[%emt 0:00:11]} 20. dxc5 {[%emt 0:01:19]} bxc5 {[%emt 0:03:43]} 21. Nd7 {[%emt 0:00:44]} Rd8 {[%emt 0:12:27]} 22. Nxf8 {[%emt 0:00:27]} Qxf8 {[%emt 0:00:09]} 23. Rxd8 {[%emt 0:01:14]} Bxd8 {[%emt 0:00:05]} 24. Qd2 {[%emt 0:01:08]} Bc6 {[%emt 0:00:15]} 25. Rd1 {[%emt 0:01:17]} Bc7 {[%emt 0:00:06]} 26. Qc3 {[%emt 0:03:23]} e5 {[%emt 0:01:04]} 27. a3 {[%emt 0:03:23]} a5 {[%emt 0:00:28]} 28. Rb1 {[%emt 0:03:27]} Qd6 {[%emt 0:02:55]} 29. Qe1 {[%emt 0:02:32]} Qe6 {[%emt 0:04:45]} 30. Rc1 {[%emt 0:03:09]} f4 {[%emt 0:05:13]} 31. exf4 {[%emt 0:00:46]} exf4 {[%emt 0:00:01]} 32. Qc3 {[%emt 0:00:40]} Qh6 {[%emt 0:00:05]} 33. Qf6 {[%emt 0:00:54]} Qxf6 {[%emt 0:00:23]} 34. Bxf6 {[%emt 0:00:01]} Kf7 {[%emt 0:00:17]} 35. Bc3 {[%emt 0:00:36]} h5 $18 {[%emt 0:01:15]} 36. g3 {[%emt 0:04:21]} e3 {[%emt 0:02:16]} 37. Re1 {[%emt 0:07:43]} exf2+ {[%emt 0:01:42]} 38. Kxf2 {[%emt 0:00:05]} fxg3+ {[%emt 0:00:29]} 39. hxg3 {[%emt 0:00:11]} h4 {[%emt 0:00:49]} 40. gxh4 {[%emt 0:01:52]} g3+ {[%emt 0:15:14]} 41. Kg1 {[%emt 0:15:08]} g2 {[%emt 0:00:00]} 42. Be5 {[%emt 0:00:00]} Bd8 {[%emt 0:00:00]} 43. Bg3 {[%emt 0:00:00]} Bf6 {[%emt 0:00:00]} 44. Bf2 {[%emt 0:00:00]} Bf3 {[%emt 0:00:00]} 45. Re3 {[%emt 0:00:00]} Bc6 {[%emt 0:00:00]} 46. Rh3 {[%emt 0:00:00]} Be7 {[%emt 0:00:00]} 47. h5 {[%emt 0:00:00]} Kg7 {[%emt 0:00:00]} 48. h6+ {[%emt 0:00:00]} Kh7 {[%emt 0:00:00]} 49. Rh5 {[%emt 0:00:00]} Bf8 {[%emt 0:01:00]} 50. Bxc5 {[%emt 0:00:00]} 1-0

[Event "GER-ch Youth U12M 2018"]
[Site "Willingen"]
[Date "2018.05.24"]
[Round "8"]
[White "Haack, Kevin"]
[Black "Halabi, Ibrahim"]
[Result "1-0"]
[ECO "E09"]
[WhiteElo "1846"]
[BlackElo "1701"]
[Annotator "NA"]
[PlyCount "99"]
[EventDate "2018.05.19"]
[EventType "swiss"]
[EventCountry "GER"]
[SourceTitle "playchess.com"]
[Source "ChessBase"]
[SourceQuality "1"]
[TimeControl "40/4500+30:900+30"]

1. c4 {[%emt 0:00:00]} e6 {[%emt 0:00:04]} 2. g3 {[%emt 0:00:00]} d5 {[%emt 0:00:13]} 3. Bg2 {[%emt 0:00:00]} Nf6 {[%emt 0:00:14]} 4. Nf3 {[%emt 0:00:00]} c6 {[%emt 0:00:38]} 5. O-O {[%emt 0:00:01]} Nbd7 {[%emt 0:00:40]} 6. d4 {[%emt 0:00:15]} Be7 {[%emt 0:01:08]} 7. Qc2 {[%emt 0:00:13]} O-O {[%emt 0:00:35]} 8. Nbd2 {[%emt 0:00:30]} h6 {[%emt 0:08:42]} 9. e4 {[%emt 0:00:19]} dxe4 {[%emt 0:00:38]} 10. Nxe4 {[%emt 0:00:09]} Nxe4 {[%emt 0:00:10]} 11. Qxe4 {[%emt 0:00:06]} Nf6 {[%emt 0:00:05] E09: Katalanisch} (11... Bf6 12. Bf4 Re8 13. Rad1 Qe7 14. Rfe1 Nb6 15. Ne5 Bxe5 16. dxe5 Rb8 17. Rd6 c5 18. Be3 Qc7 19. Red1 Bd7 20. Qg4 Kf8 21. b3 Rbd8 22. Qe4 Bc6 23. Qh7 Bxg2 24. Rxd8 Rxd8 25. Bxc5+ {1-0 (25) Howell,D (2644)-Verma,A (2054) London 2016}) 12. Qc2 {[%emt 0:00:25]} Bd6 {[%emt 0:03:45]} 13. b3 {[%emt 0:02:08]} Bd7 {[%emt 0:06:00]} 14. Bb2 {[%emt 0:01:56]} Rc8 {[%emt 0:01:01]} 15. Rad1 {[%emt 0:02:27]} Qa5 $146 {[%emt 0:16:40]} ({Vorgänger:} 15... Re8 16. Rfe1 Qa5 17. Ne5 Rcd8 18. a3 Bc8 19. b4 {1-0 (31) Pavlovic,D (2245)-Masovic,B Belgrade 2004}) 16. Ne5 {[%emt 0:05:54]} Be8 {[%emt 0:04:32]} 17. Rfe1 {[%emt 0:05:06]} Nd7 {[%emt 0:03:48]} 18. Bc3 {[%emt 0:05:57]} Bb4 {[%emt 0:02:55]} 19. Bxb4 {[%emt 0:00:55]} Qxb4 {[%emt 0:00:10]} 20. Nd3 {[%emt 0:00:43]} Qb6 {[%emt 0:02:25]} 21. Nb2 {[%emt 0:04:19]} Qc7 {[%emt 0:02:27]} 22. c5 {[%emt 0:04:07]} b6 {[%emt 0:03:24]} 23. Nc4 {[%emt 0:03:29]} b5 {[%emt 0:07:12]} 24. Nd6 {[%emt 0:00:21]} Rd8 {[%emt 0:00:05]} 25. Qe4 {[%emt 0:18:21]} Nb8 {[%emt 0:08:24]} 26. Rd3 {[%emt 0:04:46]} Qe7 $18 {[%emt 0:00:47]} 27. Qf4 {[%emt 0:07:22]} Na6 {[%emt 0:01:50]} 28. a3 {[%emt 0:05:11]} Nc7 {[%emt 0:00:46]} 29. Nf5 {[%emt 0:00:32]} Qd7 {[%emt 0:01:33]} 30. Bxc6 {[%emt 0:00:53]} Nd5 {[%emt 0:01:28]} 31. Nxh6+ {[%emt 0:03:29]} Kh8 {[%emt 0:01:00]} 32. Qh4 {[%emt 0:01:36]} Qe7 {[%emt 0:03:08]} 33. Nxf7+ {[%emt 0:00:25]} Kg8 {[%emt 0:00:41]} 34. Qxe7 {[%emt 0:00:54]} Nxe7 {[%emt 0:00:12]} 35. Nxd8 {[%emt 0:00:10]} Nxc6 {[%emt 0:00:20]} 36. Nxc6 {[%emt 0:00:18]} Bxc6 {[%emt 0:00:06]} 37. Rxe6 {[%emt 0:00:13]} Bd5 {[%emt 0:00:41]} 38. Re5 {[%emt 0:00:07]} Rd8 {[%emt 0:00:44]} 39. Rxd5 {[%emt 0:00:18]} Rxd5 {[%emt 0:00:10]} 40. c6 {[%emt 0:00:06]} Rd8 {[%emt 0:15:06]} 41. d5 {[%emt 0:15:07]} Kf7 {[%emt 0:00:07]} 42. d6 {[%emt 0:00:08]} Ke6 {[%emt 0:00:47]} 43. c7 {[%emt 0:00:08]} Rc8 {[%emt 0:00:34]} 44. d7 {[%emt 0:00:04]} Rxc7 {[%emt 0:00:09]} 45. d8=Q {[%emt 0:00:08]} Rc1+ {[%emt 0:00:16]} 46. Kg2 {[%emt 0:00:10]} Ra1 {[%emt 0:00:13]} 47. Re3+ {[%emt 0:00:09]} Kf5 {[%emt 0:00:09]} 48. Qf8+ {[%emt 0:00:10]} Kg6 {[%emt 0:00:10]} 49. g4 {[%emt 0:00:21]} b4 {[%emt 0:00:30]} 50. Qf5+ {[%emt 0:00:05]} 1-0

[Event "GER-ch Youth U12M 2018"]
[Site "Willingen"]
[Date "2018.05.24"]
[Round "8"]
[White "May, Ben-Iven"]
[Black "Bakiev, Diyor"]
[Result "1/2-1/2"]
[ECO "C90"]
[WhiteElo "1769"]
[BlackElo "1752"]
[Annotator "NA"]
[PlyCount "159"]
[EventDate "2018.05.19"]
[EventType "swiss"]
[EventCountry "GER"]
[SourceTitle "playchess.com"]
[Source "ChessBase"]
[SourceQuality "1"]
[TimeControl "40/4500+30:900+30"]

1. e4 {[%emt 0:00:00]} e5 {[%emt 0:00:07]} 2. Nf3 {[%emt 0:00:00]} Nc6 {[%emt 0:00:09]} 3. Bb5 {[%emt 0:00:14]} a6 {[%emt 0:00:29]} 4. Ba4 {[%emt 0:00:27]} Nf6 {[%emt 0:00:23]} 5. O-O {[%emt 0:00:09]} Be7 {[%emt 0:00:15]} 6. Re1 {[%emt 0:00:25]} b5 {[%emt 0:00:33]} 7. Bb3 {[%emt 0:00:08]} O-O {[%emt 0:00:18]} 8. c3 {[%emt 0:00:35]} d6 {[%emt 0:01:11]} 9. d3 {[%emt 0:00:46]} Bb7 {[%emt 0:04:55]} 10. Nbd2 {[%emt 0:03:05]} Na5 {[%emt 0:05:10]} 11. Bc2 {[%emt 0:01:42]} Re8 {[%emt 0:00:56]} 12. Nf1 {[%emt 0:01:52]} Bf8 {[%emt 0:01:05]} 13. Ng3 {[%emt 0:00:35]} g6 {[%emt 0:02:54]} 14. Bg5 {[%emt 0:02:19]} Bg7 {[%emt 0:02:02]} 15. Qd2 {[%emt 0:00:21]} c5 {[%emt 0:04:09]} 16. Bh6 {[%emt 0:02:02]} Nd7 {[%emt 0:11:15]} 17. Bxg7 {[%emt 0:00:13]} Kxg7 {[%emt 0:00:03]} 18. Rad1 {[%emt 0:06:39]} Nf8 {[%emt 0:05:07]} 19. b3 {[%emt 0:04:04]} f6 {[%emt 0:07:09]} 20. d4 {[%emt 0:04:13]} Qc7 {[%emt 0:02:36]} 21. h4 {[%emt 0:10:20]} Rad8 {[%emt 0:04:51]} 22. d5 {[%emt 0:01:01]} Bc8 {[%emt 0:01:30]} 23. Rc1 Nb7 {[%emt 0:02:11]} 24. c4 {[%emt 0:06:00]} b4 {[%emt 0:03:35]} 25. a4 Na5 {[%emt 0:02:10]} 26. Rb1 {[%emt 0:03:05]} Qf7 {[%emt 0:01:28]} 27. Bd1 {[%emt 0:07:00]} Nd7 {[%emt 0:01:55]} 28. Kh2 {[%emt 0:04:51]} Rh8 {[%emt 0:01:50]} 29. Kg1 {[%emt 0:02:42]} Rdg8 {[%emt 0:01:28]} 30. Rb2 {[%emt 0:02:20]} Nb6 {[%emt 0:00:36]} 31. Rb1 {[%emt 0:03:30]} h5 {[%emt 0:02:09]} 32. Kf1 {[%emt 0:05:59]} Kf8 {[%emt 0:01:17]} 33. Kg1 {[%emt 0:05:19]} g5 {[%emt 0:06:36]} 34. Rf1 {[%emt 0:06:33]} Bg4 {[%emt 0:06:21]} 35. Qe3 {[%emt 0:00:43]} Qg7 {[%emt 0:00:57]} 36. Be2 {[%emt 0:00:32]} gxh4 {[%emt 0:01:18]} 37. Nxh4 {[%emt 0:00:09]} Bxe2 {[%emt 0:00:08]} 38. Qxe2 {[%emt 0:00:02]} Qg5 {[%emt 0:00:35]} 39. Nf3 {[%emt 0:00:24]} Qg4 {[%emt 0:01:12]} 40. Nh2 {[%emt 0:00:44]} Qxe2 {[%emt 0:16:57]} 41. Nxe2 {[%emt 0:15:04]} h4 {[%emt 0:00:00]} 42. f4 {[%emt 0:00:00]} Ke7 {[%emt 0:00:00]} 43. Kf2 {[%emt 0:00:00]} Rg7 {[%emt 0:00:00]} 44. f5 {[%emt 0:00:00]} Rhg8 {[%emt 0:00:00]} 45. Rg1 {[%emt 0:00:00]} Rg3 {[%emt 0:00:00]} 46. Nf3 {[%emt 0:00:00]} R3g4 {[%emt 0:00:00]} 47. Ke3 {[%emt 0:00:00]} Rxg2 {[%emt 0:00:00]} 48. Rxg2 {[%emt 0:00:00]} Rxg2 {[%emt 0:00:00]} 49. Nxh4 {[%emt 0:00:00]} Rh2 {[%emt 0:00:00]} 50. Nf3 {[%emt 0:00:00]} Rh3 {[%emt 0:00:00]} 51. Kf2 {[%emt 0:00:00]} Rh7 {[%emt 0:00:00]} 52. Ke3 {[%emt 0:00:00]} Rg7 {[%emt 0:00:00]} 53. Kf2 {[%emt 0:00:00]} Rg4 {[%emt 0:00:00]} 54. Ke3 {[%emt 0:00:00]} Rg2 {[%emt 0:01:16]} 55. Nh4 {[%emt 0:00:00]} Rg4 {[%emt 0:00:24]} 56. Nf3 {[%emt 0:00:00]} Nbxc4+ {[%emt 0:01:17]} 57. bxc4 {[%emt 0:00:11]} Nxc4+ {[%emt 0:00:05]} 58. Kd3 {[%emt 0:00:43]} Na3 {[%emt 0:00:23]} 59. Rb2 {[%emt 0:01:36]} c4+ {[%emt 0:00:49]} 60. Ke3 {[%emt 0:00:13]} a5 {[%emt 0:00:24]} 61. Ra2 {[%emt 0:00:54]} Kd7 {[%emt 0:01:12]} 62. Nd2 {[%emt 0:01:24]} Kc7 {[%emt 0:00:41]} 63. Kf3 {[%emt 0:01:13]} Rh4 {[%emt 0:00:17]} 64. Kg3 {[%emt 0:00:10]} Rh1 {[%emt 0:00:22]} 65. Kf2 {[%emt 0:00:37]} Kb6 {[%emt 0:01:00]} 66. Rxa3 {[%emt 0:00:15]} bxa3 {[%emt 0:00:05]} 67. Nxc4+ {[%emt 0:00:03]} Kc5 {[%emt 0:00:11]} 68. Nxa3 {[%emt 0:00:03]} Ra1 {[%emt 0:00:37]} 69. Nc2 {[%emt 0:01:31]} Rxa4 {[%emt 0:00:29]} 70. Ke3 {[%emt 0:00:04]} Ra2 {[%emt 0:00:32]} 71. Kd3 {[%emt 0:00:24]} Rb2 {[%emt 0:01:03]} 72. Kc3 {[%emt 0:01:06]} Rb8 {[%emt 0:00:35]} 73. Nc1 {[%emt 0:00:41]} a4 {[%emt 0:00:35]} 74. Nd3+ {[%emt 0:00:17]} Kb6 {[%emt 0:00:57]} 75. Kb4 {[%emt 0:01:45]} Rh8 {[%emt 0:00:32]} 76. Nce1 {[%emt 0:02:16]} Ra8 {[%emt 0:00:53]} 77. Nc2 {[%emt 0:00:23]} Rh8 78. Nce1 Rh4 79. Nf2 Rf4 80. Ned3 1/2-1/2

[Event "GER-ch Youth U12M 2018"]
[Site "Willingen"]
[Date "2018.05.24"]
[Round "8"]
[White "Lutz, Adam"]
[Black "Weidenhoefer, Max"]
[Result "1/2-1/2"]
[ECO "C01"]
[WhiteElo "1761"]
[BlackElo "1709"]
[Annotator "NA"]
[PlyCount "58"]
[EventDate "2018.05.19"]
[EventType "swiss"]
[EventCountry "GER"]
[SourceTitle "playchess.com"]
[Source "ChessBase"]
[SourceQuality "1"]
[TimeControl "40/4500+30:900+30"]

1. e4 {[%emt 0:00:00]} e6 {[%emt 0:00:12]} 2. d4 {[%emt 0:01:36]} d5 {[%emt 0:00:08]} 3. exd5 {[%emt 0:02:28]} exd5 {[%emt 0:00:13]} 4. Bd3 {[%emt 0:00:09]} Bd6 {[%emt 0:01:35]} 5. Ne2 {[%emt 0:01:03]} Ne7 {[%emt 0:00:50]} 6. O-O {[%emt 0:01:38]} O-O {[%emt 0:01:44]} 7. Ng3 {[%emt 0:04:28]} h6 {[%emt 0:05:43]} 8. Qh5 {[%emt 0:02:19]} Nd7 {[%emt 0:12:06]} 9. Bxh6 {[%emt 0:03:07]} gxh6 {[%emt 0:03:43]} 10. Qxh6 {[%emt 0:00:08]} f5 {[%emt 0:04:41]} 11. Nxf5 {[%emt 0:01:32]} Nxf5 {[%emt 0:13:41]} 12. Bxf5 {[%emt 0:00:15]} Rxf5 {[%emt 0:01:30]} 13. Qg6+ {[%emt 0:00:09]} Kh8 {[%emt 0:00:12]} 14. Qxf5 {[%emt 0:00:24]} Nf6 {[%emt 0:00:12]} 15. Qg5 {[%emt 0:07:25]} Bxh2+ {[%emt 0:01:14]} 16. Kh1 {[%emt 0:00:01]} Bd6 {[%emt 0:07:00]} 17. g3 {[%emt 0:01:16]} Qf8 {[%emt 0:02:54]} 18. Kg2 {[%emt 0:03:14]} Nh7 {[%emt 0:09:20]} 19. Rh1 {[%emt 0:02:32]} Qf5 {[%emt 0:03:33]} 20. Qd8+ {[%emt 0:04:19]} Kg7 {[%emt 0:00:41]} 21. Qh4 {[%emt 0:00:19]} Be6 {[%emt 0:01:05]} 22. Nd2 {[%emt 0:02:57]} Rf8 {[%emt 0:00:34]} 23. Qh6+ {[%emt 0:01:00]} Kg8 {[%emt 0:00:20]} 24. Qe3 {[%emt 0:00:34]} Nf6 {[%emt 0:02:13]} 25. Rae1 {[%emt 0:06:36]} Bd7 {[%emt 0:00:15]} 26. Qh6 {[%emt 0:01:11]} Nh7 {[%emt 0:00:34]} 27. Qe3 {[%emt 0:11:23]} Nf6 {[%emt 0:01:53]} 28. Qh6 {[%emt 0:02:15]} Nh7 {[%emt 0:00:25]} 29. Qe3 Re8 1/2-1/2